bitfinex-derivatives/quotes_SOLF0:USTF0_20250207
["timestamp","ask_amount","ask_price","bid_price","bid_amount"]
[1738951515799,0.03468433,197.47,197.43,0.03645402]
[1738951516402,5.0631,197.46,197.43,0.03645402]
[1738951517804,5.0631,197.46,197.43,5.10015402]
[1738951519102,5.0631,197.46,197.43,0.03645402]
[1738951519703,0.03468433,197.47,197.43,0.03645402]
[1738951520204,5.0631,197.46,197.43,0.03645402]
[1738951520898,0.03468433,197.47,197.43,0.03645402]
[1738951521105,0.03468433,197.47,197.44,13.8533713]
[1738951521294,8.433e-05,197.47,197.46,5.063]
[1738951521500,3.0489,197.55,197.46,13.8533713]
[1738951521695,1.5586,197.55,197.5,5.0618]
[1738951521900,1.5586,197.55,197.49,13.8533713]
[1738951522303,1.5586,197.55,197.52,5.0613]
[1738951522502,0.03227737,197.54,197.52,5.0613]
[1738951523306,0.03227737,197.54,197.53,5.0612]
[1738951525605,0.03227737,197.54,197.5,0.03866697]
[1738951526907,0.03227737,197.54,197.53,5.0612]
[1738951535312,1.5472,197.64,197.61,5.0591]
[1738951535606,1.5472,197.64,197.56,22.13191689]
[1738951535801,3.0591,197.69,197.59,22.13191689]
[1738951536003,12.11202897,197.7,197.59,22.13191689]
[1738951536202,1.6073,197.7,197.62,22.13191689]
[1738951536408,7.2126,197.77,197.69,5.0569]
[1738951536613,5.0559,197.74,197.69,5.0569]
[1738951536909,5.0559,197.74,197.7,0.03793367]
[1738951537210,1.6073,197.76,197.65,22.13191689]
[1738951537406,0.03827191,197.74,197.7,0.03245063]
[1738951538912,5.0562,197.73,197.7,0.03245063]
[1738951539113,0.03827191,197.74,197.7,0.03245063]
[1738951539312,5.0566,197.71,197.7,0.03245063]
[1738951539807,0.03827191,197.74,197.7,5.08905063]
[1738951540015,0.03827191,197.74,197.7,0.03245063]
[1738951540812,0.03827191,197.74,197.72,5.0563]
[1738951543315,0.03827191,197.74,197.7,0.03245063]
[1738951543509,0.03827191,197.74,197.73,5.0561]
[1738951544416,0.03827191,197.74,197.71,5.0566]
[1738951544612,0.03827191,197.74,197.7,0.03245063]
[1738951545009,5.0561,197.73,197.7,0.03245063]
[1738951545515,0.03827191,197.74,197.7,0.03245063]
[1738951545716,5.09437191,197.74,197.7,0.03245063]
[1738951546312,0.03827191,197.74,197.7,0.03245063]
[1738951546710,0.03827191,197.74,197.73,5.0561]
[1738951546909,0.03827191,197.74,197.7,0.03245063]
[1738951547613,22.13191689,197.89,197.71,22.13191689]
[1738951547812,1.5886,197.9,197.76,22.13191689]
[1738951548018,0.92418802,197.89,197.76,22.13191689]
[1738951548409,0.92418802,197.89,197.83,5.0533]
[1738951548410,5.0522,197.89,197.83,5.0533]
[1738951548609,5.0522,197.89,197.79,22.13191689]
[1738951548816,5.0522,197.89,197.84,0.03822442]
[1738951549020,5.0522,197.89,197.85,5.053]
[1738951549215,1.5886,197.9,197.84,0.03822442]
[1738951550728,6.6404,197.9,197.84,5.09122442]
[1738951550921,1.5886,197.9,197.84,0.03822442]
[1738951553719,1.5886,197.9,197.86,5.0527]
[1738951553925,1.5886,197.9,197.84,0.03822442]
[1738951554120,1.6177,197.94,197.84,0.03822442]
[1738951554317,1.6177,197.94,197.86,22.13191689]
[1738951554923,5.051,197.93,197.88,5.08558337]
[1738951555122,5.051,197.93,197.88,0.03328337]
[1738951556728,5.0513,197.92,197.88,0.03328337]
[1738951558427,5.051,197.93,197.88,5.08548337]
[1738951559024,1.6177,197.94,197.88,5.08548337]
[1738951559219,5.0514,197.92,197.88,5.08548337]
[1738951559424,1.6177,197.94,197.88,0.03328337]
[1738951559729,5.0512,197.93,197.88,0.03328337]
[1738951559923,1.6177,197.94,197.88,0.03328337]
[1738951560227,5.052,197.9,197.88,0.03328337]
[1738951560423,23.74961689,197.94,197.77,22.13191689]
[1738951560625,0.92401685,197.93,197.8,5.0542]
[1738951560830,5.0533,197.85,197.8,5.0542]
[1738951561030,23.74961689,197.94,197.77,22.13191689]
[1738951561230,0.92408295,197.93,197.79,5.0545]
[1738951561429,5.0534,197.84,197.79,5.0545]
[1738951561826,23.74961689,197.94,197.8,0.03559699]
[1738951562030,5.0518,197.9,197.86,5.0526]
[1738951562326,1.6177,197.94,197.72,11.3949]
[1738951562327,0.03643267,197.89,197.85,0.0383621]
[1738951562526,1.6177,197.94,197.72,1.2823]
[1738951562527,22.13191689,197.92,197.78,5.0548]
[1738951562827,1.6177,197.94,197.82,22.13191689]
[1738951563028,6.6687,197.94,197.88,5.052]
[1738951563328,1.6177,197.94,197.85,22.13191689]
[1738951563538,5.08416938,197.91,197.88,0.03252821]
[1738951563738,0.03256938,197.91,197.88,0.03252821]
[1738951564139,5.0521,197.89,197.88,0.03252821]
[1738951564635,0.03256938,197.91,197.88,0.03252821]
[1738951565637,5.0519,197.9,197.88,0.03252821]
[1738951566241,0.03256938,197.91,197.88,0.03252821]
[1738951566837,0.03256938,197.91,197.88,22.1644451]
[1738951567037,5.0499,197.98,197.93,5.0509]
[1738951567535,5.0491,198.01,197.96,5.05]
[1738951567736,1.6119,198.05,197.92,22.13191689]
[1738951568139,0.03711047,198.0,197.97,0.03863288]
[1738951569145,0.03711047,198.0,197.99,5.0495]
[1738951569443,1.5495,198.06,197.99,22.13191689]
[1738951569648,1.5611,198.12,198.07,5.0473]
[1738951570140,1.5611,198.12,198.03,27.18021689]
[1738951570341,1.5611,198.12,197.91,5.7507]
[1738951570342,3.1307,198.12,197.99,22.13191689]
[1738951570541,3.1307,198.12,198.03,22.13191689]
[1738951570740,8.1769,198.12,198.06,5.0476]
[1738951571044,1.5611,198.12,198.04,0.03185604]
[1738951571347,22.13191689,198.28,198.12,5.0461]
[1738951571642,6.52365738,198.27,198.15,22.13191689]
[1738951571842,5.043,198.25,198.17,5.0446]
[1738951572042,0.92285738,198.24,198.18,0.0377103]
[1738951572245,5.6008,198.27,198.18,0.0377103]
[1738951572444,5.0441,198.2,198.11,22.13191689]
[1738951572646,5.6008,198.27,198.11,22.13191689]
[1738951572946,0.92256223,198.26,198.19,5.0443]
[1738951573147,0.92256223,198.26,198.11,22.13191689]
[1738951573448,0.92256223,198.26,198.18,22.13191689]
[1738951573759,26.13191689,198.35,198.18,22.13191689]
[1738951573944,0.03367715,198.24,198.22,22.13191689]
[1738951574146,0.92237435,198.31,198.22,22.13191689]
[1738951574447,1.5184,198.32,198.22,22.13191689]
[1738951574645,1.5184,198.32,198.27,5.0421]
[1738951574845,1.5184,198.32,198.22,22.13191689]
[1738951575343,1.5184,198.32,198.26,22.13191689]
[1738951575745,5.0426,198.26,198.25,0.03523893]
[1738951575939,22.13191689,198.31,198.15,22.13191689]
[1738951576146,0.92235051,198.3,198.15,22.13191689]
[1738951576343,5.0423,198.28,198.15,22.13191689]
[1738951577143,0.03779698,198.23,198.2,0.03645981]
[1738951577544,2.53143191,198.3,198.12,1.5336]
[1738951577744,0.03549498,198.23,198.2,0.03757954]
[1738951578141,0.92223191,198.29,198.2,0.03757954]
[1738951578339,0.03858789,198.23,198.2,0.03757954]
[1738951579348,5.08218789,198.23,198.2,0.03757954]
[1738951579544,0.03858789,198.23,198.2,0.03757954]
[1738951580051,5.0438,198.21,198.2,0.03757954]
[1738951581648,5.0443,198.2,198.12,1.5336]
[1738951582049,1.5147,198.26,198.12,1.5336]
[1738951582246,5.045,198.17,198.07,22.13191689]
[1738951582442,22.13191689,198.24,198.07,22.13191689]
[1738951582644,1.5147,198.26,198.14,5.0455]
[1738951582842,0.03344047,198.17,198.14,0.03575537]
[1738951583042,1.5147,198.26,198.13,22.13191689]
[1738951583248,1.5147,198.26,198.06,1.6005]
[1738951583249,0.03501062,198.17,198.14,0.03500716]
[1738951583444,22.13191689,198.21,198.14,0.03500716]
[1738951583646,22.13191689,198.21,198.13,5.0458]
[1738951583647,0.03294836,198.17,198.13,5.0458]
[1738951583851,0.03294836,198.17,198.16,0.03518339]
[1738951584152,1.5501,198.2,198.07,22.13191689]
[1738951584352,5.0451,198.16,198.15,0.03580064]
[1738951584651,1.5501,198.2,198.04,22.13191689]
[1738951584847,5.0462,198.12,198.04,22.13191689]
[1738951585152,5.0462,198.12,198.1,0.03642079]
[1738951585449,0.03594685,198.1,198.07,5.0473]
[1738951585652,0.03594685,198.1,198.09,0.03214091]
[1738951586245,0.03594685,198.1,197.98,22.13191689]
[1738951586450,22.13191689,198.12,197.96,1.3512]
[1738951586651,1.5533,198.11,197.96,1.3512]
[1738951586855,5.0472,198.08,197.96,1.3512]
[1738951587047,5.0472,198.08,197.98,22.13191689]
[1738951587254,1.5329,198.1,197.98,22.13191689]
[1738951587460,0.03226952,198.05,198.04,5.0482]
[1738951587652,1.5329,198.1,198.01,22.13191689]
[1738951587847,1.5501,198.2,198.07,22.13191689]
[1738951588246,5.08169171,198.15,198.12,0.03704384]
[1738951589361,5.0457,198.14,198.12,0.03704384]
[1738951589659,0.03619171,198.15,198.12,0.03704384]
[1738951590153,5.0459,198.13,198.12,0.03704384]
[1738951590458,22.13191689,198.13,197.97,22.13191689]
[1738951590853,5.0477,198.06,198.02,5.0485]
[1738951591054,22.13191689,198.13,197.94,22.13191689]
[1738951591255,0.92309296,198.12,197.94,22.13191689]
[1738951591456,5.08598066,198.06,198.03,0.03753604]
[1738951592357,0.03808066,198.06,197.94,22.13191689]
[1738951592559,24.5788019,198.09,197.96,5.05]
[1738951592751,22.13191689,198.06,197.92,1.5275]
[1738951593058,1.5236,198.09,197.96,22.13191689]
[1738951593760,0.035921,198.04,198.01,0.03797621]
[1738951595054,5.084321,198.04,198.01,0.03797621]
[1738951595360,0.035921,198.04,198.01,0.03797621]
[1738951595569,5.0487,198.03,198.01,0.03797621]
[1738951596457,0.035921,198.04,198.01,0.03797621]
[1738951596761,5.0487,198.02,198.01,0.03797621]
[1738951597258,5.0493,198.0,197.96,5.05]
[1738951597561,1.5236,198.09,197.93,22.13191689]
[1738951597758,5.0488,198.02,197.97,5.0498]
[1738951597962,1.5236,198.09,197.96,22.13191689]
[1738951598162,1.5236,198.09,198.0,5.049]
[1738951598361,0.0363836,198.04,198.01,0.03697199]
[1738951599059,0.0363836,198.04,198.03,5.0484]
[1738951599965,0.0363836,198.04,198.01,5.08567199]
[1738951600156,0.0363836,198.04,198.01,0.03697199]
[1738951600864,0.0363836,198.04,198.02,5.0485]
[1738951601063,0.0363836,198.04,198.01,0.03697199]
[1738951601362,22.13191689,198.17,198.01,0.03697199]
[1738951601560,2.48057996,198.16,198.03,22.13191689]
[1738951601761,1.5577,198.16,198.03,22.13191689]
[1738951601956,0.17847,198.1,197.94,22.13191689]
[1738951602161,0.17847,198.1,197.98,22.13191689]
[1738951602565,0.03548053,198.06,198.04,5.0481]
[1738951602762,0.03548053,198.06,198.02,0.03635944]
[1738951603266,5.08328053,198.06,198.02,5.08485944]
[1738951604063,0.03548053,198.06,198.02,0.03635944]
[1738951604660,5.0484,198.04,198.02,0.03635944]
[1738951604856,0.03548053,198.06,198.02,0.03635944]
[1738951605661,5.0484,198.03,198.02,0.03635944]
[1738951605862,1.5518,198.05,197.9,22.13191689]
[1738951606560,1.5518,198.05,197.91,1.5356]
[1738951606761,5.0487,198.03,197.98,5.0496]
[1738951607165,0.03432019,198.02,197.99,0.03399147]
[1738951607365,0.03432019,198.02,197.99,5.0493]
[1738951607566,0.03432019,198.02,197.99,0.0320077]
[1738951608066,0.03432019,198.02,198.01,5.0489]
[1738951610168,0.03432019,198.02,197.99,5.0813077]
[1738951610471,0.03432019,198.02,197.99,0.0320077]
[1738951611965,5.0492,198.0,197.99,0.0320077]
[1738951612175,0.03432019,198.02,197.86,22.13191689]
[1738951612366,5.0507,197.95,197.91,5.0515]
[1738951612868,5.0507,197.95,197.89,5.0518]
[1738951613464,5.08809539,197.94,197.9,0.03429086]
[1738951613766,0.03739539,197.94,197.9,0.03429086]
[1738951613968,5.08819539,197.94,197.9,0.03429086]
[1738951614267,0.03739539,197.94,197.9,0.03429086]
[1738951617468,5.0515,197.91,197.9,0.03429086]
[1738951617671,0.03739539,197.94,197.79,68.14480134]
[1738951617972,3.0756,197.95,197.79,68.14480134]
[1738951618571,0.92390983,197.94,197.79,68.14480134]
[1738951618772,0.03869712,197.88,197.85,0.03762896]
[1738951619681,5.09099712,197.88,197.85,0.03762896]
[1738951620170,0.03869712,197.88,197.85,0.03762896]
[1738951620361,0.03869712,197.88,197.74,23.64571689]
[1738951620567,0.92411139,197.89,197.74,23.64571689]
[1738951620767,22.13191689,197.9,197.8,5.0542]
[1738951620965,22.13191689,197.9,197.74,23.64571689]
[1738951621168,22.13191689,197.87,197.74,1.5138]
[1738951621369,7.0404,197.86,197.74,1.5138]
[1738951621568,7.0404,197.86,197.8,0.03798319]
[1738951621569,0.03620779,197.84,197.8,0.03798319]
[1738951621769,5.08950779,197.84,197.8,5.09228319]
[1738951621969,0.03620779,197.84,197.8,0.03798319]
[1738951622373,0.03620779,197.84,197.82,5.0536]
[1738951622667,0.03620779,197.84,197.8,0.03798319]
[1738951622967,0.03620779,197.84,197.83,5.0535]
[1738951626874,0.03620779,197.84,197.81,5.054]
[1738951627069,0.03620779,197.84,197.8,0.03798319]
[1738951627268,0.03620779,197.84,197.81,5.054]
[1738951627575,0.03620779,197.84,197.8,0.03798319]
[1738951627766,0.03620779,197.84,197.8,5.09218319]
[1738951627973,0.03620779,197.84,197.8,0.03798319]
[1738951628867,0.03620779,197.84,197.81,5.054]
[1738951629074,0.03620779,197.84,197.8,0.03798319]
[1738951630472,0.03620779,197.84,197.83,5.0535]
[1738951630874,7.79e-06,197.84,197.83,5.0535]
[1738951632469,7.79e-06,197.84,197.8,0.03798319]
[1738951633172,7.79e-06,197.84,197.83,5.0535]
[1738951633375,1.6367,197.92,197.81,22.13191689]
[1738951633674,1.6367,197.92,197.88,5.0522]
[1738951634069,5.0516,197.91,197.82,1.5538]
[1738951634267,1.6367,197.92,197.82,1.5538]
[1738951634268,1.6367,197.92,197.87,5.0523]
[1738951634467,0.03884912,197.91,197.88,0.03596748]
[1738951635274,5.052,197.89,197.88,0.03596748]
[1738951635477,0.03884912,197.91,197.77,22.13191689]
[1738951635778,1.6367,197.92,197.77,22.13191689]
[1738951636278,5.053,197.85,197.81,5.054]
[1738951636479,5.053,197.85,197.77,22.13191689]
[1738951636678,5.08884988,197.85,197.81,0.03260015]
[1738951637177,0.03584988,197.85,197.81,0.03260015]
[1738951637381,4.988e-05,197.85,197.81,22.16451704]
[1738951637883,1.5072,197.93,197.81,22.16451704]
[1738951637884,22.13191689,198.01,197.81,22.16451704]
[1738951638084,1.5443,198.03,197.9,22.13191689]
[1738951638784,1.5443,198.03,197.94,22.13191689]
[1738951639279,1.5443,198.03,197.97,0.03434802]
[1738951639280,0.03744316,198.0,197.97,0.03434802]
[1738951639680,0.03744316,198.0,197.99,5.0495]
[1738951643583,0.03744316,198.0,197.98,5.0497]
[1738951644284,0.03744316,198.0,197.99,5.0495]
[1738951646489,0.03744316,198.0,197.97,5.08424802]
[1738951646684,0.03744316,198.0,197.97,0.03434802]
[1738951646897,8.2286,198.09,197.98,22.13191689]
[1738951647084,4.0,198.16,198.02,22.13191689]
[1738951647283,0.92306318,198.15,198.02,22.13191689]
[1738951647487,4.7448,198.19,198.02,22.13191689]
[1738951647488,5.0463,198.12,198.02,22.13191689]
[1738951647793,5.0463,198.12,198.07,5.0472]
[1738951648183,0.03549297,198.09,198.06,5.0476]
[1738951648385,0.92293085,198.15,197.98,22.13191689]
[1738951648593,0.03231415,198.09,198.06,0.03239115]
[1738951649295,5.0472,198.08,198.06,0.03239115]
[1738951649495,0.03231415,198.09,198.06,0.03239115]
[1738951649895,5.0474,198.07,198.06,0.03239115]
[1738951650096,3.2044,198.08,197.95,22.13191689]
[1738951650296,3.2044,198.08,197.92,2.0112]
[1738951650495,5.0484,198.04,197.92,2.0112]
[1738951650896,3.2044,198.08,198.05,5.0478]
[1738951651198,0.03658547,198.08,198.05,0.03412512]
[1738951653200,5.08398547,198.08,198.05,0.03412512]
[1738951653395,0.03658547,198.08,198.05,0.03412512]
[1738951654102,5.0477,198.06,198.05,0.03412512]
[1738951658607,0.03658547,198.08,197.94,22.13191689]
[1738951658903,5.0488,198.02,197.94,22.13191689]
[1738951659099,5.0488,198.02,197.98,5.0495]
[1738951659299,5.0492,198.0,197.93,1.4962]
[1738951659501,4.0,198.05,197.93,1.4962]
[1738951659807,5.0493,198.0,197.97,0.03364596]
[1738951660705,5.0493,198.0,197.97,5.08354596]
[1738951661209,5.0495,197.99,197.97,0.03364596]
[1738951661404,0.0359355,198.01,197.97,0.03364596]
[1738951661802,5.0497,197.98,197.97,0.03364596]
[1738951662712,0.0359355,198.01,197.86,25.04511689]
[1738951663010,0.92368296,198.01,197.86,25.04511689]
[1738951663207,0.92368296,198.01,197.86,23.62251689]
[1738951663404,0.92368296,198.01,197.86,1.4906]
[1738951663808,5.0512,197.93,197.92,0.03772126]
[1738951664710,5.0512,197.93,197.82,22.13191689]
[1738951664711,1.6325,197.94,197.86,5.0527]
[1738951664911,5.6325,197.94,197.86,5.0527]
[1738951665108,5.6325,197.94,197.87,5.0525]
[1738951665709,5.0519,197.9,197.89,0.0348656]
[1738951667111,0.03286962,197.92,197.89,0.0348656]
[1738951667807,5.0515,197.91,197.89,0.0348656]
[1738951668311,5.08416962,197.92,197.89,0.0348656]
[1738951669007,5.0515,197.91,197.89,0.0348656]
[1738951669206,0.03286962,197.92,197.89,0.0348656]
[1738951669403,5.0518,197.9,197.89,0.0348656]
[1738951672314,0.03286962,197.92,197.8,1.5187]
[1738951672513,5.6325,197.94,197.83,5.0535]
[1738951672816,0.92396449,197.93,197.8,1.5187]
[1738951673414,0.03589453,197.88,197.85,0.03533436]
[1738951673715,5.0528,197.86,197.85,0.03533436]
[1738951674418,1.4983,197.87,197.75,22.13191689]
[1738951675518,0.0371493,197.83,197.79,0.03426824]
[1738951675816,0.0371493,197.83,197.8,5.0543]
[1738951676412,0.0371493,197.83,197.79,0.03426824]
[1738951676814,4.0371493,197.83,197.79,0.03426824]
[1738951677117,5.0543,197.8,197.79,0.03426824]
[1738951677518,5.054,197.82,197.79,0.03426824]
[1738951677719,4.0371493,197.83,197.79,0.03426824]
[1738951678213,9.0907493,197.83,197.79,0.03426824]
[1738951678409,4.0371493,197.83,197.79,0.03426824]
[1738951680020,4.0371493,197.83,197.72,13.80588638]
[1738951680317,4.0371493,197.83,197.69,15.32038638]
[1738951680518,13.80588638,197.81,197.69,13.80588638]
[1738951680709,5.0553,197.77,197.73,5.0559]
[1738951680912,13.80588638,197.81,197.69,13.80588638]
[1738951681115,4.0,197.83,197.69,13.80588638]
[1738951681311,0.03619717,197.77,197.75,5.0556]
[1738951681522,5.0548,197.79,197.69,13.80588638]
[1738951681819,0.03742795,197.78,197.69,13.80588638]
[1738951682022,0.03742795,197.78,197.76,13.80588638]
[1738951682213,5.0538,197.83,197.76,13.80588638]
[1738951682418,0.03335807,197.79,197.77,5.0551]
[1738951682618,0.03335807,197.79,197.76,13.80588638]
[1738951683020,0.03335807,197.79,197.78,5.0548]
[1738951687918,0.03335807,197.79,197.73,1.5012]
[1738951688127,0.03335807,197.79,197.69,13.80588638]
[1738951688429,5.0553,197.77,197.73,5.0559]
[1738951688626,0.03238975,197.76,197.73,5.0559]
[1738951689825,0.03238975,197.76,197.69,13.80588638]
[1738951690325,0.03238975,197.76,197.75,5.0556]
[1738951690527,5.0544,197.8,197.72,13.80588638]
[1738951690726,0.03209561,197.77,197.72,13.80588638]
[1738951691127,0.03209561,197.77,197.76,5.0552]
[1738951693728,0.03209561,197.77,197.74,5.0556]
[1738951693925,7.0479,197.83,197.69,13.80588638]
[1738951694124,0.03865432,197.77,197.69,13.80588638]
[1738951694321,0.03865432,197.77,197.75,5.0555]
[1738951694531,0.03865432,197.77,197.69,13.80588638]
[1738951694830,0.03865432,197.77,197.72,13.80588638]
[1738951695024,3.0479,197.83,197.72,13.80588638]
[1738951695219,0.03517822,197.76,197.75,13.80588638]
[1738951695421,5.054,197.82,197.75,13.80588638]
[1738951695625,3.0479,197.83,197.78,5.0546]
[1738951695823,0.03526735,197.8,197.78,5.0546]
[1738951696530,5.0548,197.79,197.75,5.0554]
[1738951696732,0.03526735,197.8,197.72,13.80588638]
[1738951698731,0.03526735,197.8,197.77,5.0549]
[1738951699035,0.03526735,197.8,197.72,13.80588638]
[1738951699438,5.08966735,197.8,197.77,5.0549]
[1738951699835,0.03526735,197.8,197.78,5.0546]
[1738951700138,0.03526735,197.8,197.72,13.80588638]
[1738951700730,0.03526735,197.8,197.79,5.0546]
[1738951705841,0.03526735,197.8,197.74,1.5625]
[1738951706043,0.03526735,197.8,197.77,5.0548]
[1738951706243,0.03526735,197.8,197.73,1.6228]
[1738951706732,0.03526735,197.8,197.75,13.80588638]
[1738951707339,0.03526735,197.8,197.79,5.0546]
[1738951709943,5.0525,197.87,197.84,5.0531]
[1738951710144,17.80588638,197.9,197.84,5.0531]
[1738951710444,5.0529,197.86,197.82,5.0537]
[1738951710646,17.80588638,197.9,197.82,5.0537]
[1738951711046,5.0524,197.88,197.82,5.0537]
[1738951711250,0.03454125,197.88,197.84,0.03409025]
[1738951711452,0.03454125,197.88,197.84,13.83997663]
[1738951711652,1.5612,197.94,197.84,13.80588638]
[1738951711847,1.5612,197.94,197.84,0.03278653]
[1738951712048,0.0369093,197.9,197.84,0.03278653]
[1738951712550,0.0369093,197.9,197.85,5.053]
[1738951712742,5.0887093,197.9,197.84,0.03278653]
[1738951712945,0.0369093,197.9,197.89,5.052]
[1738951713243,0.0369093,197.9,197.84,0.03278653]
[1738951713453,0.0369093,197.9,197.85,5.053]
[1738951713648,0.0369093,197.9,197.84,0.03278653]
[1738951714066,0.0369093,197.9,197.86,5.0525]
[1738951714348,0.0369093,197.9,197.84,0.03278653]
[1738951714754,0.0369093,197.9,197.89,5.052]
[1738951731462,9.3e-06,197.9,197.89,18.85788638]
[1738951733966,13.80588638,198.03,197.89,13.80588638]
[1738951734169,5.0495,197.99,197.89,13.80588638]
[1738951734857,0.03560108,197.96,197.95,5.0504]
[1738951735370,0.03560108,197.96,197.92,0.03618248]
[1738951735665,0.03560108,197.96,197.94,5.0505]
[1738951735859,0.03560108,197.96,197.92,0.03618248]
[1738951736468,5.0505,197.95,197.92,0.03618248]
[1738951736668,0.03560108,197.96,197.92,0.03618248]
[1738951737566,0.03560108,197.96,197.95,5.0505]
[1738951739173,5.08600108,197.96,197.93,5.0509]
[1738951739366,0.03560108,197.96,197.92,0.03618248]
[1738951740674,5.0521,197.89,197.8,13.80588638]
[1738951741168,13.80588638,197.91,197.82,5.0536]
[1738951741376,5.0528,197.86,197.79,6.76180083]
[1738951741568,13.80588638,197.88,197.79,6.76180083]
[1738951741770,0.03350526,197.84,197.81,0.0359809]
[1738951741971,5.08690526,197.84,197.81,0.0359809]
[1738951742867,0.03350526,197.84,197.81,0.0359809]
[1738951743378,0.03350526,197.84,197.71,13.80588638]
[1738951743567,13.80588638,197.82,197.71,13.80588638]
[1738951743977,1.5284,197.81,197.69,27.04720333]
[1738951744375,13.80588638,197.79,197.69,27.04720333]
[1738951744572,0.03435983,197.77,197.69,27.04720333]
[1738951745474,0.03435983,197.77,197.72,5.0563]
[1738951746374,0.03435983,197.77,197.71,13.80588638]
[1738951746570,1.4957,197.78,197.68,13.80588638]
[1738951746767,0.03459944,197.76,197.7,5.0568]
[1738951746971,0.03459944,197.76,197.68,13.80588638]
[1738951747176,0.03459944,197.76,197.71,13.80588638]
[1738951747474,1.5284,197.81,197.71,13.80588638]
[1738951747674,0.03286275,197.75,197.71,13.80588638]
[1738951748178,0.03286275,197.75,197.74,5.0558]
[1738951749772,6.275e-05,197.75,197.74,18.86168638]
[1738951750572,1.6291,197.84,197.74,13.80588638]
[1738951750877,1.5398,197.87,197.82,13.80588638]
[1738951751173,4.0,197.92,197.82,13.80588638]
[1738951751378,13.80588638,197.9,197.79,13.80588638]
[1738951751575,5.0528,197.86,197.83,0.03287602]
[1738951751787,0.03701262,197.86,197.76,13.80588638]
[1738951752075,0.03701262,197.86,197.83,0.03287602]
[1738951752278,0.03701262,197.86,197.79,0.03287602]
[1738951752877,5.0533,197.84,197.79,0.03287602]
[1738951753082,1.5582,197.83,197.79,0.03287602]
[1738951753780,5.0539,197.82,197.79,0.03287602]
[1738951755380,5.0543,197.8,197.79,0.03287602]
[1738951756174,0.03610191,197.81,197.67,22.08868462]
[1738951756375,4.0,197.81,197.67,22.08868462]
[1738951756773,1.4828,197.8,197.67,22.08868462]
[1738951757378,0.0380001,197.75,197.67,22.08868462]
[1738951757884,0.0380001,197.75,197.74,5.0558]
[1738951773689,0.0380001,197.75,197.67,22.08868462]
[1738951774592,0.0380001,197.75,197.72,5.0562]
[1738951774895,0.0380001,197.75,197.66,13.81296456]
[1738951775196,5.0564,197.72,197.65,1.6393]
[1738951775396,13.81296456,197.77,197.66,13.81296456]
[1738951775596,0.0375199,197.7,197.66,13.81296456]
[1738951775892,0.0375199,197.7,197.69,5.0571]
[1738951787500,0.0375199,197.7,197.69,18.87006456]
[1738951787704,1.99e-05,197.7,197.69,18.87006456]
[1738951788001,1.6264,197.81,197.76,5.0553]
[1738951788200,1.6264,197.81,197.72,13.81296456]
[1738951788899,5.0548,197.79,197.72,13.81296456]
[1738951789202,0.03595002,197.77,197.74,0.0375199]
[1738951789501,5.0556,197.76,197.69,13.81296456]
[1738951789693,5.0556,197.76,197.74,0.03338058]
[1738951790097,0.03595002,197.77,197.75,5.0556]
[1738951792595,0.03595002,197.77,197.74,5.08908058]
[1738951793002,0.03595002,197.77,197.74,0.03338058]
[1738951794296,0.03595002,197.77,197.76,5.0553]
[1738951802211,0.03595002,197.77,197.75,5.0555]
[1738951802917,0.03595002,197.77,197.76,5.0553]
[1738951803416,3.98,197.87,197.75,13.81296456]
[1738951803417,13.81296456,197.92,197.75,13.81296456]
[1738951803614,3.2255,197.91,197.79,13.81296456]
[1738951803819,3.2255,197.91,197.82,13.81296456]
[1738951804517,0.03295615,197.88,197.85,0.03399184]
[1738951804912,3.2255,197.91,197.85,0.0330343]
[1738951805108,5.08485544,197.88,197.85,0.0330343]
[1738951805309,0.03245544,197.88,197.85,0.0330343]
[1738951805515,5.0527,197.87,197.85,0.0330343]
[1738951805820,0.03245544,197.88,197.76,13.81296456]
[1738951806019,13.81296456,197.86,197.72,13.81296456]
[1738951807014,0.03540593,197.81,197.77,0.03705868]
[1738951809418,5.0544,197.8,197.77,0.03705868]
[1738951810120,5.08950593,197.81,197.77,0.03705868]
[1738951812021,0.03540593,197.81,197.77,0.03705868]
[1738951813320,5.08970593,197.81,197.77,0.03705868]
[1738951813718,0.03540593,197.81,197.77,0.03705868]
[1738951813919,5.0545,197.8,197.77,0.03705868]
[1738951814214,0.03540593,197.81,197.77,0.03705868]
[1738951814718,13.81296456,197.8,197.77,0.03705868]
[1738951814917,5.0552,197.77,197.72,5.0563]
[1738951815524,5.0554,197.76,197.72,5.0563]
[1738951815920,5.0554,197.76,197.7,5.0566]
[1738951816223,5.08767859,197.76,197.7,5.0566]